fUSD/lending_fUSD_20260123
["ID","MTS","AMOUNT","RATE_DAILY","PERIOD"]
[403084313,1769140240288,-380.69489282,0.00017999,2]
[403084315,1769140240297,-155.775,0.00017999,2]
[403084317,1769140240307,-307.93843563,0.00017999,2]
[403084319,1769140240318,-300.0,0.00017999,2]
[403084322,1769140240328,-231226.43030843,0.00018,2]
[403084332,1769140240414,-551.09530478,0.00018,2]
[403084335,1769140240430,-104745.17089939,0.00018,2]
[403084337,1769140240446,-13285.79926393,0.00018,2]
[403084340,1769140240459,-2266.50399619,0.00018,2]
[403084342,1769140240472,-20908.2524505,0.00018,2]
[403084344,1769140240484,-2219.41037294,0.00018,2]
[403084347,1769140240496,-1295.24488642,0.00018,2]
[403084438,1769140241311,-768.71294345,0.00018,2]
[403084442,1769140241341,-7987767.86193919,0.00018,2]
[403084660,1769140243268,-298.0,0.000179,2]
[403084666,1769140243313,-316.16713008,0.000179,2]
[403084668,1769140243324,-1654.15439225,0.000179,2]
[403084676,1769140243378,-852.46644844,0.000179,2]
[403084678,1769140243389,-785.0,0.000179,2]
[403084680,1769140243402,-3825.11178137,0.000179,2]
[403084683,1769140243422,-271.46602208,0.000179,2]
[403084685,1769140243434,-416.62661885,0.000179,2]
[403084688,1769140243445,-4085.63681963,0.000179,2]
[403084690,1769140243454,-163.29123587,0.00018,2]
[403084907,1769140245665,-151.0,0.00016852,2]
[403084909,1769140245676,-183967.32096531,0.00018,2]
[403084913,1769140245714,-691223.67017642,0.00018,2]
[403084916,1769140245729,-1845.05847301,0.00018,2]
[403084920,1769140245763,-12041.30100882,0.00018,2]
[403085004,1769140456421,10000.01,0.00015,2]
[403085005,1769140456449,10000.01,0.00015,2]
[403085006,1769140456472,9999.98,0.00015,2]
[403085007,1769140463253,0.03,0.00015,2]
[403085008,1769140463276,2999.97,0.00015,2]
[403085012,1769140501331,-7558.65253386,0.00015,2]
[403085013,1769140501416,-10000.01,0.00015,2]
[403085014,1769140501569,-10000.01,0.00015,2]
[403085015,1769140501677,-635.71232497,0.00015,2]
[403085016,1769140501708,-10000.01,0.00015,2]
[403085019,1769140504396,-274.08438925,0.00015,2]
[403085020,1769140505874,-236.39367648,0.00015,2]
[403085021,1769140506425,-10000.01,0.00015,2]
[403085022,1769140506607,-10000.01,0.00015,2]
[403085023,1769140506854,-10000.01,0.00015,2]
[403085025,1769140507493,-1295.09707544,0.00015,2]
[403085062,1769140680396,3500.0,0.00016,7]
[403085432,1769141357833,646.70450913,0.0001654,7]
[403085433,1769141365159,-155.03186657,0.00015424,2]
[403085434,1769141365181,-90.59975783,0.00015511,2]
[403085451,1769141431505,-64.43210872,0.00015511,2]
[403085452,1769141431515,-237.6119615,0.00015511,2]
[403085453,1769141436216,-41.3880385,0.00015511,2]
[403085454,1769141436226,-409.0,0.00015524,2]
[403085455,1769141436235,-300.0,0.00015524,2]
[403085456,1769141436245,-300.0,0.00015524,2]
[403085457,1769141436254,-1200.0,0.00015524,2]
[403085458,1769141436264,-500.0,0.00015525,5]
[403085459,1769141436274,-500.0,0.00015525,5]
[403085460,1769141436283,-500.0,0.00015525,5]
[403085461,1769141436293,-150.0,0.00015525,5]
[403085462,1769141436304,-150.0,0.00015525,5]
[403085463,1769141436313,-150.0,0.00015525,5]
[403085464,1769141436322,-500.0,0.00015525,5]
[403085466,1769141436332,-213.35,0.00015525,2]
[403085468,1769141436341,-204.47202902,0.00015525,5]
[403085470,1769141436351,-150.0,0.00015525,5]
[403085472,1769141436360,-255.70160513,0.00015525,5]
[403085474,1769141436370,-150.0,0.00015525,5]
[403085476,1769141436379,-150.0,0.00015525,5]
[403085478,1769141436388,-500.0,0.00015525,5]
[403085480,1769141436398,-150.0,0.00015525,5]
[403085501,1769141436484,-150.0,0.00015525,2]
[403085504,1769141436496,-500.0,0.00015525,5]
[403085506,1769141436505,-500.0,0.00015525,2]
[403085509,1769141436514,-500.0,0.0001558,5]
[403085512,1769141436523,-500.4746004,0.0001558,5]
[403085515,1769141436532,-150.0,0.0001558,5]
[403085517,1769141436541,-150.0,0.0001558,5]
[403085520,1769141436550,-500.0,0.0001558,5]
[403085523,1769141436559,-150.0,0.0001558,5]
[403085525,1769141436568,-500.0,0.0001558,5]
[403085528,1769141436578,-150.0,0.0001558,5]
[403085531,1769141436588,-150.0,0.0001558,5]
[403085534,1769141436598,-150.0,0.0001558,5]
[403085535,1769141436607,-500.0,0.0001558,5]
[403085537,1769141436616,-500.0,0.0001558,5]
[403085539,1769141436625,-500.0,0.0001558,2]
[403085541,1769141436634,-477.54600617,0.00015597,2]
[403085543,1769141436643,-152.13538667,0.00015598,2]
[403085545,1769141436652,-155.03186655,0.00015598,2]
[403085547,1769141436662,-1968.04636561,0.00015599,2]
[403085553,1769141436712,-49347.42327621,0.00015599,2]
[403085587,1769141437652,-2980.17541906,0.00015589,2]
[403085588,1769141437663,-2543.10972511,0.00015589,2]
[403085589,1769141437674,-342.8913422,0.00015589,2]
[403085590,1769141437685,-922.72351363,0.00015589,2]
[403085591,1769141437694,-4660.94153435,0.00015589,2]
[403085592,1769141437707,-2127.95846565,0.00015589,2]
[403085593,1769141437716,-699364.57085818,0.00015599,2]
[403085594,1769141437725,-3579.2613016,0.00015599,2]
[403085595,1769141437738,-500.0,0.00015635,5]
[403085596,1769141437747,-189.89164013,0.00015635,5]
[403085597,1769141437756,-354.0,0.00015635,5]
[403085598,1769141437766,-200.0,0.00015635,5]
[403085599,1769141437775,-463.79054865,0.00015635,5]
[403085600,1769141437784,-200.0,0.00015635,5]
[403085601,1769141437793,-160.66639761,0.00015635,5]
[403085602,1769141437802,-150.0,0.00015635,5]
[403085603,1769141437812,-500.0,0.00015635,5]
[403085604,1769141437822,-500.0,0.00015635,5]
[403085605,1769141437831,-500.0,0.00015635,2]
[403085606,1769141437840,-500.0,0.00015689,5]
[403085607,1769141437850,-150.0,0.00015689,5]
[403085608,1769141437860,-500.0,0.00015689,5]
[403085609,1769141437870,-500.0,0.00015689,5]
[403085610,1769141437879,-500.0,0.00015689,2]
[403085611,1769141437889,-24455.26134999,0.00015691,2]
[403085612,1769141437898,-866.07485617,0.00015697,2]
[403085613,1769141437907,-202.88619949,0.00015697,2]
[403085614,1769141437917,-866.07485617,0.00015697,2]
[403085616,1769141437927,-866.07485617,0.00015697,2]
[403085618,1769141437936,-866.07485617,0.00015697,2]
[403085620,1769141437945,-866.07485617,0.00015697,2]
[403085622,1769141437955,-866.07485617,0.00015697,2]
[403085624,1769141437964,-866.07485617,0.00015697,2]
[403085626,1769141437974,-866.07485617,0.00015697,2]
[403085628,1769141437983,-866.07485617,0.00015697,2]
[403085630,1769141437992,-866.07485617,0.00015697,2]
[403085632,1769141438001,-866.07485617,0.00015697,2]
[403085634,1769141438013,-866.07485617,0.00015697,2]
[403085636,1769141438022,-866.07485617,0.00015697,2]
[403085638,1769141438031,-866.07485617,0.00015697,2]
[403085640,1769141438041,-866.07485617,0.00015697,2]
[403085642,1769141438051,-866.07485617,0.00015697,2]
[403085644,1769141438060,-866.07485617,0.00015697,2]
[403085646,1769141438070,-866.07485617,0.00015697,2]
[403085648,1769141438079,-866.07485617,0.00015697,2]
[403085650,1769141438093,-866.07485617,0.00015697,2]
[403085652,1769141438102,-866.07485617,0.00015697,2]
[403085654,1769141438111,-866.07485617,0.00015697,2]
[403085656,1769141438120,-866.07485617,0.00015697,2]
[403085658,1769141438130,-866.07485617,0.00015697,2]
[403085660,1769141438139,-866.07485617,0.00015697,2]
[403085662,1769141438149,-866.07485617,0.00015697,2]
[403085664,1769141438158,-866.07485617,0.00015697,2]
[403085666,1769141438167,-866.07485617,0.00015697,2]
[403085668,1769141438177,-866.07485617,0.00015697,2]
[403085670,1769141438186,-866.07485617,0.00015697,2]
[403085672,1769141438195,-866.07485617,0.00015697,2]
[403085674,1769141438205,-866.07485617,0.00015697,2]
[403085676,1769141438215,-866.07485617,0.00015697,2]
[403085678,1769141438225,-866.07485617,0.00015697,2]
[403085680,1769141438242,-866.07485617,0.00015697,2]
[403085682,1769141438256,-866.07485617,0.00015697,2]
[403085684,1769141438265,-866.07485617,0.00015697,2]
[403085686,1769141438274,-866.07485617,0.00015697,2]
[403085688,1769141438283,-866.07485617,0.00015697,2]
[403085690,1769141438298,-866.07485617,0.00015697,2]
[403085692,1769141438317,-866.07485617,0.00015697,2]
[403085694,1769141438327,-866.07485617,0.00015697,2]
[403085696,1769141438337,-866.07485617,0.00015697,2]
[403085698,1769141438348,-866.07485617,0.00015697,2]
[403085700,1769141438359,-866.07485617,0.00015697,2]
[403085702,1769141438368,-866.07485617,0.00015697,2]
[403085704,1769141438377,-866.07485617,0.00015697,2]
[403085706,1769141438386,-866.07485617,0.00015697,2]
[403085708,1769141438395,-866.07485617,0.00015697,2]
[403085710,1769141438404,-866.07485617,0.00015697,2]
[403085712,1769141438414,-866.07485617,0.00015697,2]
[403085714,1769141438425,-866.07485617,0.00015697,2]
[403085716,1769141438434,-866.07485617,0.00015697,2]
[403085718,1769141438444,-866.07485617,0.00015697,2]
[403085720,1769141438453,-866.07485617,0.00015697,2]
[403085722,1769141438463,-2204.81247963,0.00015697,2]
[403085724,1769141438472,-2204.81247963,0.00015697,2]
[403085726,1769141438481,-2204.81247963,0.00015697,2]
[403085728,1769141438490,-2204.81247963,0.00015697,2]
[403085730,1769141438499,-2204.81247963,0.00015697,2]
[403085732,1769141438507,-2204.81247963,0.00015697,2]
[403085734,1769141438516,-2204.81247963,0.00015697,2]
[403085736,1769141438525,-2204.81247963,0.00015697,2]
[403085738,1769141438534,-2204.81247963,0.00015697,2]
[403085740,1769141438544,-2204.81247963,0.00015697,2]
[403085742,1769141438553,-2204.81247963,0.00015697,2]
[403085744,1769141438562,-2204.81247963,0.00015697,2]
[403085746,1769141438571,-2204.81247963,0.00015697,2]
[403085748,1769141438580,-2204.81247963,0.00015697,2]
[403085750,1769141438590,-2204.81247963,0.00015697,2]
[403085752,1769141438599,-2204.81247963,0.00015697,2]
[403085754,1769141438608,-2204.81247963,0.00015697,2]
[403085756,1769141438617,-2204.81247963,0.00015697,2]
[403085758,1769141438627,-2204.81247963,0.00015697,2]
[403085760,1769141438636,-2204.81247963,0.00015697,2]
[403085762,1769141438645,-2204.81247963,0.00015697,2]
[403085764,1769141438654,-2204.81247963,0.00015697,2]
[403085766,1769141438663,-2204.81247963,0.00015697,2]
[403085768,1769141438673,-2204.81247963,0.00015697,2]
[403085770,1769141438683,-2204.81247963,0.00015697,2]
[403085772,1769141438704,-2204.81247963,0.00015697,2]
[403085774,1769141438714,-2204.81247963,0.00015697,2]
[403085776,1769141438723,-2204.81247963,0.00015697,2]
[403085778,1769141438732,-2204.81247963,0.00015697,2]
[403085780,1769141438743,-2204.81247963,0.00015697,2]
[403085782,1769141438752,-2204.81247964,0.00015697,2]
[403085784,1769141438761,-2204.81247964,0.00015697,2]
[403085786,1769141438770,-2204.81247964,0.00015697,2]
[403085788,1769141438779,-9999.99,0.00015699,2]
[403085790,1769141438788,-3843.03,0.00015699,2]
[403085792,1769141438797,-4767.54,0.00015699,2]
[403085794,1769141438806,-444.27,0.00015699,2]
[403085795,1769141438816,-9999.99,0.00015699,2]
[403085796,1769141438827,-150.99,0.00015699,2]
[403085797,1769141438836,-150.99,0.00015699,2]
[403085798,1769141438846,-3823.15,0.00015699,2]
[403085799,1769141438855,-5896.79,0.00015699,2]
[403085800,1769141438864,-999.99,0.00015699,2]
[403085801,1769141438873,-1326.6415,0.000157,2]
[403085802,1769141438883,-2273.86645764,0.00015732,2]
[403085803,1769141438892,-500.0,0.00015744,5]
[403085804,1769141438902,-218.75385845,0.00015744,5]
[403085805,1769141438911,-500.0,0.00015744,5]
[403085806,1769141438920,-314.98616488,0.00015744,5]
[403085807,1769141438929,-339.97005786,0.00015744,2]
[403085808,1769141438938,-212.7,0.0001579,2]
[403085809,1769141438947,-500.0,0.0001579,2]
[403085810,1769141438957,-384.83,0.0001579,2]
[403085811,1769141438967,-200.0,0.0001579,2]
[403085812,1769141438976,-2425.94,0.0001579,2]
[403085813,1769141438985,-150.0,0.0001579,2]
[403085814,1769141438996,-770.79,0.0001579,2]
[403085815,1769141439008,-500.0,0.00015799,5]
[403085816,1769141439016,-500.0,0.00015799,5]
[403085817,1769141439026,-1098.65614174,0.00015799,5]
[403085818,1769141439035,-391.44526261,0.00015799,2]
[403085820,1769141439047,-640.74444918,0.00015799,2]
[403085822,1769141439056,-507.04733674,0.00015799,2]
[403085824,1769141439065,-923.744,0.00015799,2]
[403085826,1769141439074,-500.0,0.00015799,2]
[403085828,1769141439085,-500.0,0.00015799,2]
[403085830,1769141439095,-519.823686,0.00015799,2]
[403085832,1769141439104,-500.0,0.00015799,2]
[403085833,1769141439114,-500.0,0.00015799,2]
[403085834,1769141439123,-500.0,0.00015799,2]
[403085835,1769141439133,-500.0,0.00015799,2]
[403085836,1769141439142,-500.0,0.00015799,2]
[403085837,1769141439151,-500.0,0.00015799,2]
[403085838,1769141439160,-157.66821442,0.00015799,2]
[403085839,1769141439170,-213.35,0.00015799,2]
[403085840,1769141439179,-500.0,0.00015799,2]
[403085841,1769141439189,-500.0,0.00015799,2]
[403085842,1769141439199,-500.0,0.00015799,2]
[403085843,1769141439208,-500.0,0.00015799,2]
[403085844,1769141439218,-522.01012098,0.00015799,2]
[403085845,1769141439227,-500.0,0.00015799,2]
[403085846,1769141439236,-500.0,0.00015799,2]
[403085847,1769141439246,-253.31940986,0.00015804,2]
[403085848,1769141439255,-384.83,0.00015832,2]
[403085849,1769141439265,-209.43329755,0.00015838,2]
[403085850,1769141439275,-500.0,0.00015854,5]
[403085851,1769141439284,-135.61072492,0.00015854,5]
[403085852,1769141439787,-151.0,0.00015743,2]
[403085853,1769141439798,-141.15896,0.00015854,5]
[403086007,1769141501722,-182.59685887,0.00015287,2]
[403086009,1769141503284,-257.03806775,0.00015287,2]
[403086010,1769141504925,-187.04670374,0.00015287,2]
[403086011,1769141528960,1017.66,0.00018,30]
[403086073,1769141957496,1992.71859937,0.00014,2]
[403086113,1769142233074,955.39,0.00014607,2]
[403086128,1769142321259,7051.90140063,0.00014671,2]
[403086129,1769142321504,4745.05859937,0.00014671,2]
[403086132,1769142324342,1894.4,0.00014671,2]
[403086134,1769142335180,1353.83351811,0.00014789,2]
[403086135,1769142335539,629.9009953,0.00014789,2]
[403086141,1769142366563,205.39256469,0.00014789,2]
[403086142,1769142371131,-166.71859657,0.0001521,2]
[403086143,1769142373441,-187.64021808,0.0001521,2]
[403086145,1769142376847,-248.60040813,0.0001521,2]
[403086146,1769142378452,166.66,0.00013874,2]
[403086147,1769142378664,166.66,0.00014166,2]
[403086148,1769142378889,166.66,0.00014458,2]
[403086149,1769142378959,-240.68893856,0.0001521,2]
[403086150,1769142379170,166.66,0.0001475,2]
[403086152,1769142381854,-166.66,0.00015042,2]
[403086153,1769142381876,-261.53703787,0.0001521,2]
[403086154,1769142383924,-249.08038838,0.0001521,2]
[403086155,1769142385399,-152.63185,0.0001521,2]
[403086157,1769142390499,-248.356892,0.0001521,2]
[403086158,1769142390521,-322.2714043,0.0001521,2]
[403086159,1769142392525,-500.0,0.0001521,2]
[403086160,1769142393958,-210.16363546,0.0001521,2]
[403086161,1769142397947,-199.02917406,0.0001521,2]
[403086162,1769142400772,-297.02273188,0.0001521,2]
[403086165,1769142412337,776.31814941,0.00015,14]
[403086186,1769142517516,3126.27,0.00011927,2]
[403086214,1769142605155,276.0,0.0001521,2]
[403086225,1769142631900,-103.59286771,0.0001521,2]
[403086226,1769142631910,-300.0,0.00015241,2]
[403086227,1769142631919,-195.0,0.00015272,2]
[403086228,1769142631928,-195.0,0.00015315,2]
[403086229,1769142631937,-300.0,0.00015332,2]
[403086230,1769142631947,-372.07930264,0.00015333,2]
[403086231,1769142631969,-19.65728588,0.00015333,2]
[403086232,1769142631980,-214.0,0.00015333,2]
[403086233,1769142631989,-279.96167248,0.00015333,2]
[403086234,1769142632004,-20.03832752,0.00015333,2]
[403086235,1769142632013,-554.94322428,0.00015333,2]
[403086236,1769142632024,-645.05677572,0.00015333,2]
[403086237,1769142632033,-300.0,0.00015333,2]
[403086238,1769142632042,-14077.0929,0.00015334,2]
[403086239,1769142632052,-166.66,0.00015334,2]
[403086240,1769142632061,-391.7365885,0.00015365,2]
[403086241,1769142632070,-391.7365885,0.00015396,2]
[403086242,1769142632078,-300.0,0.00015494,2]
[403086243,1769142632087,-1000.0,0.00015495,2]
[403086244,1769142632098,-999.99,0.00015496,2]
[403086245,1769142632107,-499.99,0.00015496,2]
[403086246,1769142632116,-18035.16,0.00015496,2]
[403086247,1769142632126,-150.99,0.00015496,2]
[403086299,1769142632482,-9999.99,0.00015496,2]
[403086301,1769142632492,-1000.0,0.00015499,2]
[403086303,1769142632502,-9962.5558,0.00015499,2]
[403086305,1769142632512,-2500.0,0.00015499,2]
[403086307,1769142632523,-623.9281,0.00015499,2]
[403086309,1769142632535,-613.659,0.00015532,2]
[403086311,1769142632545,-666.02,0.00015533,2]
[403086312,1769142632555,-242.03910792,0.00015535,2]
[403086313,1769142632565,-5414.33320867,0.00015535,2]
[403086314,1769142632575,-2774.71258552,0.00015535,2]
[403086315,1769142632584,-157.59287175,0.0001556,2]
[403086316,1769142632594,-678.0,0.00015568,2]
[403086317,1769142632604,-150.0,0.0001558,5]
[403086318,1769142632614,-287.6507494,0.0001558,5]
[403086319,1769142632624,-500.0,0.0001558,5]
[403086320,1769142632634,-150.0,0.0001558,5]
[403086321,1769142632643,-150.0,0.0001558,5]
[403086322,1769142632653,-299.857963,0.0001558,5]
[403086323,1769142632663,-500.0,0.0001558,5]
[403086324,1769142632673,-150.0,0.0001558,5]
[403086325,1769142632683,-150.0,0.0001558,5]
[403086326,1769142632692,-500.0,0.0001558,5]
[403086327,1769142632702,-150.0,0.0001558,5]
[403086328,1769142632711,-150.0,0.0001558,5]
[403086329,1769142632721,-150.0,0.0001558,5]
[403086330,1769142632730,-150.0,0.0001558,5]
[403086331,1769142632741,-150.0,0.0001558,5]
[403086332,1769142632751,-500.0,0.0001558,5]
[403086333,1769142632760,-500.0,0.0001558,5]
[403086334,1769142632770,-526.0,0.0001558,5]
[403086335,1769142632779,-500.0,0.0001558,2]
[403086336,1769142632789,-500.0,0.0001558,5]
[403086337,1769142632799,-429.41,0.00015589,3]
[403086338,1769142632808,-151.0,0.0001559,2]
[403086339,1769142632818,-151.0,0.0001559,2]
[403086340,1769142632827,-151.0,0.0001559,2]
[403086341,1769142632840,-151.0,0.0001559,2]
[403086342,1769142632849,-151.0,0.0001559,2]
[403086343,1769142632859,-500.0,0.0001559,2]
[403086344,1769142632869,-500.0,0.00015598,2]
[403086345,1769142632878,-500.0,0.00015598,2]
[403086346,1769142632888,-500.0,0.00015598,2]
[403086347,1769142632898,-500.0,0.00015598,2]
[403086348,1769142632907,-500.0,0.00015598,2]
[403086349,1769142632916,-500.0,0.00015598,2]
[403086350,1769142632926,-500.0,0.00015598,2]
[403086351,1769142632935,-500.0,0.00015598,2]
[403086352,1769142632945,-500.0,0.00015598,2]
[403086353,1769142632954,-500.0,0.00015598,2]
[403086354,1769142632964,-500.0,0.00015598,2]
[403086355,1769142632974,-500.0,0.00015598,2]
[403086356,1769142632984,-500.0,0.00015598,2]
[403086357,1769142632995,-502.09877135,0.00015598,2]
[403086358,1769142633004,-606.50090436,0.00015598,2]
[403086359,1769142633014,-500.0,0.00015598,2]
[403086360,1769142633023,-505.73656178,0.00015598,2]
[403086361,1769142633032,-150.0,0.00015635,5]
[403086362,1769142633041,-504.38071297,0.00015635,5]
[403086363,1769142633051,-150.0,0.00015635,5]
[403086364,1769142633060,-500.0,0.00015635,5]
[403086365,1769142633069,-150.0,0.00015635,5]
[403086366,1769142633078,-274.98444734,0.00015635,5]
[403086367,1769142633089,-500.0,0.00015635,5]
[403086368,1769142633099,-150.0,0.00015635,5]
[403086369,1769142633109,-150.0,0.00015635,5]
[403086370,1769142633119,-500.0,0.00015635,5]
[403086371,1769142633128,-504.31201452,0.00015635,5]
[403086372,1769142633137,-526.0,0.00015635,5]
[403086373,1769142633147,-500.0,0.00015635,2]
[403086374,1769142633157,-642.33986888,0.00015635,5]
[403086375,1769142633166,-190.47323289,0.0001569,5]
[403086376,1769142633176,-150.0,0.0001569,5]
[403086377,1769142633185,-500.0,0.0001569,5]
[403086378,1769142633195,-203.44393732,0.0001569,5]
[403086379,1769142633204,-150.0,0.0001569,5]
[403086380,1769142633214,-500.0,0.0001569,5]
[403086381,1769142633223,-526.0,0.0001569,5]
[403086382,1769142633239,-554.35873295,0.0001569,2]
[403086383,1769142633257,-500.0,0.00015698,2]
[403086384,1769142633269,-1057.31891467,0.0001571,2]
[403086385,1769142633279,-150.0,0.00015744,5]
[403086386,1769142633288,-530.90788788,0.00015744,5]
[403086387,1769142633298,-150.0,0.00015744,5]
[403086388,1769142633308,-526.0,0.00015744,5]
[403086389,1769142633318,-1000.0,0.0001579,2]
[403086390,1769142633327,-500.0,0.0001579,2]
[403086391,1769142633342,-5414.33320859,0.00015798,2]
[403086392,1769142633352,-2774.71258549,0.00015798,2]
[403086393,1769142633362,-502.45286681,0.00015799,2]
[403086394,1769142633371,-150.0,0.00015799,5]
[403086395,1769142633382,-150.0,0.00015799,5]
[403086396,1769142633391,-526.0,0.00015799,5]
[403086397,1769142633401,-44.41081333,0.000158,5]
[403086398,1769142633489,-438.3991851,0.000158,5]
[403086399,1769142633502,-352.59879329,0.000158,5]
[403086400,1769142633515,-11864.59120828,0.000158,5]
[403086401,1769142633525,-666.02,0.00015807,2]
[403086402,1769142633539,-500.0,0.00015822,2]
[403086403,1769142633551,-250.0,0.00015854,5]
[403086404,1769142633562,-227.79346808,0.00015854,5]
[403086405,1769142633573,-526.0,0.00015854,5]
[403086406,1769142633583,-384.83,0.00015873,2]
[403086407,1769142633595,-197.64,0.00015879,2]
[403086408,1769142633606,-471.89159436,0.00015892,2]
[403086409,1769142633618,-23108.20959508,0.000159,5]
[403086412,1769142637804,-500.0,0.00015498,2]
[403086413,1769142637813,-500.0,0.00015498,2]
[403086414,1769142637822,-500.0,0.00015498,2]
[403086415,1769142637831,-500.0,0.00015498,2]
[403086416,1769142637840,-500.0,0.00015498,2]
[403086417,1769142637849,-500.0,0.00015498,2]
[403086418,1769142637858,-444.940875,0.00015498,2]
[403086419,1769142637869,-34.76892991,0.00015498,2]
[403086420,1769142637879,-279.66157964,0.00015498,2]
[403086421,1769142637891,-220.33842036,0.00015498,2]
[403086422,1769142637901,-500.0,0.00015498,2]
[403086423,1769142637911,-500.0,0.00015498,2]
[403086424,1769142637920,-500.0,0.00015498,2]
[403086425,1769142637929,-500.0,0.00015498,2]
[403086426,1769142637938,-471.91958123,0.00015498,2]
[403086427,1769142637952,-28.08041877,0.00015498,2]
[403086428,1769142637961,-240.58390747,0.00015498,2]
[403086429,1769142637976,-259.41609253,0.00015498,2]
[403086430,1769142637985,-500.0,0.00015498,2]
[403086431,1769142637993,-500.0,0.00015498,2]
[403086432,1769142638003,-500.0,0.00015498,2]
[403086433,1769142638012,-500.0,0.00015498,2]
[403086434,1769142638021,-500.0,0.00015498,2]
[403086435,1769142638030,-500.0,0.00015498,2]
[403086436,1769142638039,-500.0,0.00015498,2]
[403086437,1769142638048,-500.0,0.00015498,2]
[403086438,1769142638057,-500.0,0.00015498,2]
[403086439,1769142638067,-500.0,0.00015498,2]
[403086440,1769142638076,-500.0,0.00015498,2]
[403086441,1769142638085,-500.0,0.00015498,2]
[403086442,1769142638094,-165.443337,0.00015498,2]
[403086443,1769142638105,-334.556663,0.00015498,2]
[403086444,1769142638115,-500.0,0.00015498,2]
[403086445,1769142638124,-500.0,0.00015498,2]
[403086446,1769142638133,-219.97795367,0.00015498,2]
[403086456,1769142638216,-280.02204633,0.00015498,2]
[403086458,1769142638225,-2291.79040492,0.000159,5]
[403086460,1769142638234,-526.0,0.00015909,5]
[403086462,1769142638244,-384.83,0.00015915,2]
[403086464,1769142638253,-2515.03,0.00015917,2]
[403086466,1769142638262,-288.03,0.00015918,2]
[403086468,1769142638271,-384.83,0.00015956,2]
[403086470,1769142638280,-1580.96751874,0.0001596,2]
[403086472,1769142638289,-526.0,0.00015964,5]
[403086474,1769142638298,-384.83,0.00015998,2]
[403086476,1769142638307,-526.0,0.00016018,5]
[403086478,1769142638315,-384.83,0.0001604,2]
[403086480,1769142638324,-5414.33320859,0.00016061,2]
[403086482,1769142638334,-2774.71258549,0.00016061,2]
[403086484,1769142638346,-526.0,0.00016073,5]
[403086486,1769142638355,-666.02,0.00016081,2]
[403086488,1769142638365,-384.83,0.00016081,2]
[403086490,1769142638374,-2269.33088861,0.00016116,2]
[403086493,1769142638386,-451.15504761,0.00016116,2]
[403086502,1769142638459,-1064.40417485,0.00016116,2]
[403086646,1769142639939,-6215.09988893,0.00016116,2]
[403086647,1769142639948,-384.83,0.00016123,2]
[403086648,1769142639957,-526.0,0.00016128,5]
[403086649,1769142639966,-384.83,0.00016164,2]
[403086650,1769142639975,-526.0,0.00016183,5]
[403086651,1769142639984,-5000.00884057,0.000162,5]
[403086652,1769142639994,-384.83,0.00016206,2]
[403086653,1769142640004,-526.0,0.00016238,5]
[403086654,1769142640013,-384.83,0.00016247,2]
[403086655,1769142640023,-79.96326502,0.00016264,2]
[403086656,1769142640253,-1.7e-07,0.00016264,2]
[403086657,1769142640304,-86.71673481,0.00016264,2]
[403086658,1769142640314,-384.83,0.00016289,2]
[403086659,1769142640323,-526.0,0.00016292,5]
[403086660,1769142640333,-500.93747015,0.00016323,2]
[403086661,1769142640345,-422.57279203,0.00016323,2]
[403086662,1769142640363,-655.85809235,0.00016323,2]
[403086681,1769142707672,-490.927,0.00015027,2]
[403086684,1769142739742,500.0,0.000176,30]
[403086685,1769142739859,531.03206926,0.000176,30]
[403086686,1769142740771,725.15333282,0.00013,2]
[403086687,1769142747907,500.0,0.000176,30]